Workbook

Sheet المقسطون (2)
J2: تاريخ اليوم : | K2: =TODAY() -> 2021-07-23
C3: ملف العميــل | D3: 2500 | E3: الاســم : | F3: =VLOOKUP(D3,B26:K61,2,0) -> 1
A4: نظـام الخصــم :
E5: إسم البضاعة :
C6: السعر النقدي | D6: =VLOOKUP(D3,B26:K61,4,0) -> 50000
C7: قيمة العقد بالتقسيط | D7: =VLOOKUP(D3,B26:K61,5,0) -> 70000 | E7: موديلها :
C8: المقدم | D8: 0
C9: القسط الشهري | D9: =VLOOKUP(D3,B26:K61,6,0) -> 2000
C10: ماتم سداده من المبلغ | D10: =IF($D$11>$K$2,0,IF($D$12<$K$2,$D$7,(SUM(DATEDIF($D$11,$K$2,"Y")*12)+(DATEDIF($D$11,$K$2,"ym"))+(IF(DATEDIF($D$11,$K$2,"md")<>0,1,0)))*D9)) -> 20000 | F10: المدة | G10: =(D7-D8)/D9 -> 35
C11: بداية التسديد | D11: =VLOOKUP(D3,B26:K61,7,0) -> 2020-09-25 | F11: الربح كامل | G11: =D7-D6 -> 20000
C12: نهاية التسديد | D12: =VLOOKUP(D3,B26:K61,8,0) -> 2023-06-26 | F12: الربح الشهري | G12: =G11/G10 -> 571.4285714 | I12: التاريخ الميلادي والتاريخ الهجري :
C13: الأشهر المسددة | D13: =(D10/D9) -> 10 | F13: النسبة | G13: =(G11/(D6-D8))*100 -> 40
C14: الأشهر المتبقية | D14: =D16/D9 -> 25 | F14: النسبة السنوية | G14: =(G13/G10)*12 -> 13.71428571 | I14: ملف العميــل | J14: الاســم | L14: مدة العقـد | M14: من | N14: الى
F15: النسبة الشهرية | G15: =G13/G10 -> 1.142857143 | I15: =D3 -> 2500 | J15: =F3 -> 1 | L15: =G10 -> 35 | M15: =D11 -> 2020-09-25 | N15: =D12 -> 2023-06-26
C16: الباقي من المبلغ | D16: =D7-D10 -> 50000 | I16: حالة الاشهر وقيمة العقد | M16: 2019-11-01 | N16: =EDATE(M16,L15) -> 2022-10-01
C17: الخصم | D17: =((D16*G14%)*(D14/12))/(1+((G14%)*(D14/12))) -> 11111.11111 | I17: الأشهر المسددة | J17: =IF(DATEDIF(M15,NOW(),"m")+1>L15,L15,DATEDIF(M15,NOW(),"m")+1) -> 10 | K17: المبــالغ المســدة | L17: =(J17*D9) -> 20000 | M17: حـالة العقــد
C18: المطلوب | D18: =D16-D17 -> 38888.88889 | I18: الأشهر المتبقية | J18: =L15-J17 -> 25 | K18: المبــالغ المتبـقية | L18: =(J18*D9) -> 50000 | M18: =IFERROR(IF(M49,"سداد مبكر",IF(TODAY()=N15,"العقد انتهى اليوم",IF(TODAY()>N15,"العقـد منتهى",IF(TODAY()<M15,"لم يتم تداولة","العقـد سارى")))),"") -> العقـد سارى
C23: ملاحظة : اذا تم السداد قبل الموعد المحدد يتم إضافة 1000 ( الف ريال )
B25: رقم الملف | C25: الاسم | D25: مدة القرض ( بالشهر ) | E25: السعر النقدي | F25: القيمة بعد التقسيط | G25: القسط | H25: من | I25: الى | J25: الربــح | K25: الدخل الشهري | L25: حـالة العقـد | M25: سداد مبكر بتاريخ | N25: المبلغ المسدد
B26: 100 | C26: 1 | D26: 0 | E26: 0 | F26: 0 | G26: 1160 | H26: 2008-10-25 | I26: =MID(TEXT(H26,"b2dd.mm.yyyy"),1,2)-MID(TEXT(H26+ROUND((D26-1)*354.367056/12,0),"b2dd.mm.yyyy"),1,2)+H26+ROUND((D26-1)*354.367056/12,0) -> 2008-09-25 | J26: =SUM(E26*(D26%+5%)) -> 0 | K26: 0 | L26: =IFERROR(IF(M26,"سداد مبكر",IF(TODAY()=I26,"العقد انتهى اليوم",IF(TODAY()>I26,"العقـد منتهى",IF(TODAY()<H26,"لم يتم تداولة","العقـد سارى")))),"") -> العقـد منتهى
B27: 200 | C27: 1 | D27: 0 | E27: 0 | F27: 0 | G27: 1087 | H27: 2009-01-21 | I27: 2008-12-23 | J27: 0 | K27: 0 | L27: =IFERROR(IF(M27,"سداد مبكر",IF(TODAY()=I27,"العقد انتهى اليوم",IF(TODAY()>I27,"العقـد منتهى",IF(TODAY()<H27,"لم يتم تداولة","العقـد سارى")))),"") -> العقـد منتهى
B28: 300 | C28: 1 | D28: 0 | E28: 0 | F28: 0 | G28: 1160 | H28: 2010-03-10 | I28: 2010-02-09 | J28: 0 | K28: 0 | L28: العقـد منتهى
B29: 400 | C29: 1 | D29: 0 | E29: 0 | F29: 0 | G29: 979 | H29: 2010-06-07 | I29: 2010-05-08 | J29: 0 | K29: 0 | L29: العقـد منتهى
B30: 500 | C30: 1 | D30: 0 | E30: 0 | F30: 0 | G30: 1088 | H30: 2010-11-01 | I30: 2010-10-03 | J30: 0 | K30: 0 | L30: العقـد منتهى
B31: 600 | C31: 1 | D31: 0 | E31: 0 | F31: 0 | G31: 5507 | H31: 2010-12-31 | I31: 2010-12-01 | J31: 0 | K31: 0 | L31: العقـد منتهى
B32: 700 | C32: 1 | D32: 0 | E32: 0 | F32: 0 | G32: 2118 | H32: 2011-01-30 | I32: 2010-12-31 | J32: 0 | K32: 0 | L32: العقـد منتهى
B33: 800 | C33: 1 | D33: 0 | E33: 0 | F33: 0 | G33: 2504 | H33: 2011-07-26 | I33: 2011-06-26 | J33: 0 | K33: 0 | L33: العقـد منتهى
B34: 900 | C34: 1 | D34: 0 | E34: 0 | F34: 0 | G34: 1450 | H34: 2011-07-26 | I34: 2011-06-26 | J34: 0 | K34: 0 | L34: العقـد منتهى
B35: 1000 | C35: 1 | D35: 0 | E35: 0 | F35: 0 | G35: 1450 | H35: 2011-07-26 | I35: 2011-06-26 | J35: 0 | K35: 0 | L35: العقـد منتهى
B36: 1100 | C36: 1 | D36: 0 | E36: 0 | F36: 0 | G36: 1450 | H36: 2011-08-24 | I36: 2011-07-26 | J36: 0 | K36: 0 | L36: العقـد منتهى
B37: 1200 | C37: 1 | D37: 0 | E37: 0 | F37: 0 | G37: 1450 | H37: 2011-08-24 | I37: 2011-07-26 | J37: 0 | K37: 0 | L37: العقـد منتهى
B38: 1300 | C38: 1 | D38: 0 | E38: 0 | F38: 0 | G38: 1921 | H38: 2011-11-21 | I38: 2011-10-22 | J38: 0 | K38: 0 | L38: العقـد منتهى
B39: 1400 | C39: 1 | D39: 0 | E39: 0 | F39: 0 | G39: 1559 | H39: 2012-02-17 | I39: 2012-01-19 | J39: 0 | K39: 0 | L39: العقـد منتهى
B40: 1500 | C40: 1 | D40: 0 | E40: 0 | F40: 0 | G40: 1523 | H40: 2012-03-18 | I40: 2012-02-17 | J40: 0 | K40: 0 | L40: العقـد منتهى
B41: 1600 | C41: 1 | D41: 0 | E41: 0 | F41: 0 | G41: 1269 | H41: 2014-06-23 | I41: 2014-05-24 | J41: 0 | K41: 0 | L41: العقـد منتهى
B42: 1700 | C42: 1 | D42: 0 | E42: 0 | F42: 0 | G42: 1269 | H42: 2014-10-19 | I42: 2014-09-19 | J42: 0 | K42: 0 | L42: العقـد منتهى
B43: 1800 | C43: 1 | D43: 0 | E43: 0 | F43: 0 | G43: =F43/D43 ->  | H43: 2015-01-15 | I43: 2014-12-17 | J43: 0 | K43: 0 | L43: العقـد منتهى
B44: 1900 | C44: 1 | D44: 0 | E44: 0 | F44: 0 | H44: 2015-05-13 | I44: 2015-04-14 | J44: 0 | K44: 0 | L44: العقـد منتهى
B45: 2000 | C45: 1 | D45: 0 | E45: 0 | F45: 0 | H45: 2015-07-11 | I45: 2015-06-12 | J45: 0 | K45: 0 | L45: العقـد منتهى
B46: 2100 | C46: 1 | D46: 0 | E46: 0 | F46: 0 | H46: 2017-02-21 | I46: 2017-01-23 | J46: 0 | K46: 0 | L46: العقـد منتهى
B47: 2200 | C47: 1 | D47: 40 | E47: 40000 | F47: =E47+J47 -> 58000 | G47: 1450 | H47: 2018-01-12 | I47: 2021-03-08 | J47: 18000 | K47: =G47 -> 1450 | L47: العقـد منتهى
B48: 2300 | C48: 1 | D48: 35 | E48: 50000 | F48: =E48+J48 -> 70000 | G48: 2000 | H48: 2018-04-10 | I48: 2021-01-08 | J48: 20000 | K48: 0 | L48: سداد مبكر | M48: 2019-02-07 | N48: 39889
B49: 2400 | C49: 1 | D49: 35 | E49: 50000 | F49: =E49+J49 -> 70000 | G49: 2000 | H49: 2019-11-01 | I49: 2022-08-01 | J49: 20000 | K49: =G49 -> 2000 | L49: العقـد سارى
B50: 2500 | C50: 1 | D50: 35 | E50: 50000 | F50: =E50+J50 -> 70000 | G50: 2000 | H50: 2020-09-25 | I50: =MID(TEXT(H50,"b2dd.mm.yyyy"),1,2)-MID(TEXT(H50+ROUND((D50-1)*354.367056/12,0),"b2dd.mm.yyyy"),1,2)+H50+ROUND((D50-1)*354.367056/12,0) -> 2023-06-26 | J50: 20000 | K50: =G50 -> 2000 | L50: العقـد سارى
G51: =F51/40 -> 0
G52: 0
G53: 0
G54: 0
G55: 0
G56: 0
G57: 0
G58: 0
G59: 0
G60: 0
G61: 0
E62: =SUM(E26:E61) -> 190000 | F62: =SUM(F26:F61) -> 268000 | J62: =SUM(J26:J61) -> 78000 | K62: =SUM(K26:K61) -> 5450
